fUSD/lending_fUSD_20250623
["ID","MTS","AMOUNT","RATE_DAILY","PERIOD"]
[367157698,1750677068475,-264.23105011,0.00025205,3]
[367157699,1750677068485,-586.75,0.00025205,3]
[367157700,1750677068495,-1623.452874,0.00025205,3]
[367157701,1750677068505,-490.0,0.00025205,3]
[367157702,1750677068515,-490.0,0.00025205,3]
[367157703,1750677068525,-490.0,0.00025205,3]
[367157704,1750677068537,-490.0,0.00025205,3]
[367157705,1750677068547,-490.0,0.00025205,3]
[367157706,1750677068558,-918.18,0.00025205,3]
[367157707,1750677068567,-490.0,0.00025205,3]
[367157708,1750677068577,-490.0,0.00025205,3]
[367157709,1750677068587,-490.0,0.00025205,3]
[367157710,1750677068598,-808.76,0.00025205,3]
[367157711,1750677068608,-490.0,0.00025205,3]
[367157712,1750677068617,-292.30368363,0.00025205,3]
[367157713,1750677068627,-242.78635105,0.00025205,3]
[367157714,1750677068637,-490.0,0.00025205,3]
[367157715,1750677068651,-490.0,0.00025205,3]
[367157716,1750677068661,-490.0,0.00025205,3]
[367157717,1750677068672,-1017.1,0.00025205,3]
[367157718,1750677068682,-490.0,0.00025205,3]
[367157719,1750677068692,-490.0,0.00025205,3]
[367157720,1750677068703,-490.0,0.00025205,3]
[367157721,1750677068713,-490.0,0.00025205,3]
[367157722,1750677068724,-490.0,0.00025205,3]
[367157723,1750677068735,-490.0,0.00025205,3]
[367157724,1750677068746,-490.0,0.00025205,3]
[367157725,1750677068756,-586.77,0.00025205,3]
[367157726,1750677068766,-330.27,0.00025205,3]
[367157727,1750677068776,-490.0,0.00025205,3]
[367157728,1750677068787,-490.0,0.00025205,3]
[367157729,1750677068797,-589.33,0.00025205,3]
[367157730,1750677068807,-490.0,0.00025205,3]
[367157731,1750677068817,-593.2,0.00025205,3]
[367157732,1750677068827,-494.29966908,0.00025205,3]
[367157733,1750677068837,-822.19,0.00025205,3]
[367157734,1750677068847,-630.71511036,0.00025205,3]
[367157735,1750677068857,-564.69,0.00025205,3]
[367157736,1750677068867,-490.0,0.00025205,3]
[367157737,1750677068877,-1355.79,0.00025205,3]
[367157738,1750677068887,-490.0,0.00025205,3]
[367157739,1750677068897,-490.0,0.00025205,3]
[367157740,1750677068907,-641.76,0.00025205,3]
[367157741,1750677068917,-490.0,0.00025205,3]
[367157742,1750677068926,-490.0,0.00025205,3]
[367157743,1750677068936,-490.0,0.00025205,3]
[367157744,1750677068945,-490.0,0.00025205,3]
[367157745,1750677068955,-490.0,0.00025205,3]
[367157746,1750677068965,-490.0,0.00025205,3]
[367157747,1750677068975,-572.67182859,0.00025205,3]
[367157748,1750677068984,-490.0,0.00025205,3]
[367157749,1750677068994,-490.0,0.00025205,3]
[367157750,1750677069003,-490.0,0.00025205,3]
[367157751,1750677069013,-782.71,0.00025205,3]
[367157752,1750677069023,-633.07,0.00025205,3]
[367157753,1750677069032,-490.0,0.00025205,3]
[367157754,1750677069043,-490.0,0.00025205,3]
[367157755,1750677069052,-490.0,0.00025205,3]
[367157756,1750677069062,-490.0,0.00025205,3]
[367157757,1750677069071,-208.8512382,0.00025205,3]
[367157758,1750677069081,-490.0,0.00025205,3]
[367157759,1750677069090,-658.96,0.00025205,3]
[367157760,1750677069100,-490.0,0.00025205,3]
[367157761,1750677069109,-525.14,0.00025205,3]
[367157762,1750677069118,-490.0,0.00025205,3]
[367157763,1750677069127,-890.5,0.00025205,3]
[367157764,1750677069137,-490.0,0.00025205,3]
[367157765,1750677069147,-490.0,0.00025205,3]
[367157766,1750677069157,-1072.94,0.00025205,3]
[367157767,1750677069166,-490.0,0.00025205,3]
[367157768,1750677069176,-490.0,0.00025205,3]
[367157769,1750677069185,-490.0,0.00025205,3]
[367157770,1750677069195,-490.0,0.00025205,3]
[367157771,1750677069205,-490.0,0.00025205,3]
[367157772,1750677069215,-555.61,0.00025205,3]
[367157773,1750677069224,-490.0,0.00025205,3]
[367157774,1750677069234,-2078.73,0.00025205,3]
[367157775,1750677069244,-490.0,0.00025205,3]
[367157776,1750677069253,-490.0,0.00025205,2]
[367157777,1750677069264,-531.38,0.00025205,3]
[367157778,1750677069274,-490.0,0.00025205,3]
[367157779,1750677069283,-539.95,0.00025205,3]
[367157780,1750677069294,-675.85,0.00025205,3]
[367157781,1750677069303,-889.68,0.00025205,3]
[367157782,1750677069313,-591.96,0.00025205,3]
[367157783,1750677069323,-1290.37,0.00025205,3]
[367157784,1750677069332,-750.5,0.00025205,3]
[367157785,1750677069342,-1496.75,0.00025205,3]
[367157786,1750677069351,-490.0,0.00025205,3]
[367157787,1750677069362,-1425.09,0.00025205,3]
[367157788,1750677069372,-490.0,0.00025205,3]
[367157789,1750677069382,-490.0,0.00025205,3]
[367157790,1750677069392,-2003.83,0.00025205,3]
[367157791,1750677069401,-698.17,0.00025205,3]
[367157792,1750677069410,-490.0,0.00025205,3]
[367157793,1750677069420,-1329.32,0.00025205,3]
[367157794,1750677069429,-701.54,0.00025205,3]
[367157795,1750677069439,-921.251347,0.00025205,3]
[367157796,1750677069449,-584.11190326,0.00025205,3]
[367157797,1750677069458,-286.30587761,0.00025205,3]
[367157798,1750677069468,-490.0,0.00025205,3]
[367157799,1750677069478,-1523.37,0.00025205,3]
[367157800,1750677069487,-511.03,0.00025205,3]
[367157801,1750677069497,-760.19,0.00025205,3]
[367157802,1750677069509,-490.0,0.00025205,3]
[367157803,1750677069798,-773.89,0.00025205,3]
[367157804,1750677069809,-583.1,0.00025205,3]
[367157805,1750677069819,-490.0,0.00025205,3]
[367157806,1750677069829,-490.0,0.00025205,3]
[367157807,1750677069839,-490.0,0.00025205,3]
[367157808,1750677069849,-1268.81,0.00025205,3]
[367157809,1750677069859,-795.53,0.00025205,3]
[367157810,1750677069869,-522.07570862,0.00025205,3]
[367157811,1750677069879,-764.99,0.00025205,3]
[367157812,1750677069890,-1729.12,0.00025205,3]
[367157813,1750677069900,-1463.56,0.00025205,3]
[367157814,1750677069910,-490.0,0.00025205,3]
[367157815,1750677069919,-588.39,0.00025205,3]
[367157816,1750677069929,-238.14493284,0.00025205,3]
[367157817,1750677069939,-490.0,0.00025205,3]
[367157818,1750677069949,-490.0,0.00025205,3]
[367157819,1750677069958,-563.66,0.00025205,3]
[367157820,1750677069968,-2880.86,0.00025205,3]
[367157821,1750677069978,-607.33,0.00025205,3]
[367157822,1750677069988,-490.0,0.00025205,3]
[367157823,1750677069999,-490.0,0.00025205,3]
[367157824,1750677070009,-1903.33,0.00025205,3]
[367157825,1750677070020,-388.27061297,0.00025205,3]
[367157826,1750677070030,-1492.15,0.00025205,3]
[367157827,1750677070042,-909.14,0.00025205,3]
[367157828,1750677070053,-677.65,0.00025205,3]
[367157829,1750677070063,-490.0,0.00025205,3]
[367157830,1750677070072,-872.82,0.00025205,3]
[367157831,1750677070085,-1173.09,0.00025205,3]
[367157832,1750677070098,-1009.28,0.00025205,3]
[367157833,1750677070109,-504.99,0.00025205,3]
[367157834,1750677070119,-1149.6,0.00025205,3]
[367157835,1750677070129,-490.0,0.00025205,3]
[367157836,1750677070139,-520.63097403,0.00025205,3]
[367157837,1750677070149,-490.0,0.00025205,3]
[367157838,1750677070159,-245.22130949,0.00025205,3]
[367157839,1750677070169,-752.92,0.00025205,3]
[367157840,1750677070180,-957.67,0.00025205,3]
[367157841,1750677070190,-1824.97,0.00025205,3]
[367157842,1750677070200,-1205.51,0.00025205,3]
[367157843,1750677070210,-490.0,0.00025205,3]
[367157844,1750677070219,-490.0,0.00025205,3]
[367157845,1750677070229,-490.0,0.00025205,3]
[367157846,1750677070238,-490.0,0.00025205,3]
[367157847,1750677070248,-1483.84,0.00025205,3]
[367157848,1750677070259,-1138.1,0.00025205,3]
[367157849,1750677070268,-1340.56,0.00025205,3]
[367157850,1750677070277,-1021.65,0.00025205,3]
[367157851,1750677070287,-1652.89,0.00025205,3]
[367157852,1750677070296,-490.0,0.00025205,3]
[367157853,1750677070306,-1529.36,0.00025205,3]
[367157854,1750677070315,-490.0,0.00025205,3]
[367157855,1750677070326,-904.97,0.00025205,3]
[367157856,1750677070335,-490.0,0.00025205,3]
[367157857,1750677070347,-500.92999492,0.00025205,3]
[367157858,1750677070357,-528.51,0.00025205,3]
[367157859,1750677070368,-788.59,0.00025205,3]
[367157860,1750677070377,-2486.92,0.00025205,3]
[367157861,1750677070388,-490.0,0.00025205,3]
[367157862,1750677070398,-490.0,0.00025205,3]
[367157863,1750677070407,-490.0,0.00025205,3]
[367157864,1750677070417,-1582.53,0.00025205,3]
[367157865,1750677070427,-490.0,0.00025205,3]
[367157866,1750677070437,-1695.3,0.00025205,3]
[367157867,1750677070446,-490.0,0.00025205,3]
[367157868,1750677070456,-953.91,0.00025205,3]
[367157869,1750677070465,-492.09,0.00025205,3]
[367157870,1750677070475,-490.0,0.00025205,3]
[367157871,1750677070484,-692.67,0.00025205,3]
[367157872,1750677070494,-1498.14,0.00025205,3]
[367157873,1750677070503,-554.0,0.00025205,3]
[367157874,1750677070513,-1096.84,0.00025205,3]
[367157875,1750677070524,-1564.99,0.00025205,3]
[367157876,1750677070534,-490.0,0.00025205,3]
[367157877,1750677070543,-775.42,0.00025205,3]
[367157878,1750677070553,-1320.24,0.00025205,3]
[367157879,1750677070563,-490.0,0.00025205,3]
[367157880,1750677070572,-490.0,0.00025205,3]
[367157881,1750677070581,-877.66,0.00025205,3]
[367157882,1750677070591,-490.0,0.00025205,3]
[367157883,1750677070600,-490.0,0.00025205,3]
[367157884,1750677070609,-490.0,0.00025205,3]
[367157885,1750677070619,-1303.25,0.00025205,3]
[367157886,1750677070628,-300.0,0.00025205,3]
[367157887,1750677070638,-490.0,0.00025205,3]
[367157888,1750677070652,-490.0,0.00025205,3]
[367157889,1750677070662,-490.0,0.00025205,3]
[367157890,1750677070671,-622.91,0.00025205,3]
[367157891,1750677070680,-714.7,0.00025205,3]
[367157892,1750677070690,-490.0,0.00025205,3]
[367157893,1750677070701,-830.31,0.00025205,3]
[367157894,1750677070710,-552.55,0.00025205,3]
[367157895,1750677070720,-490.0,0.00025205,3]
[367157896,1750677070730,-490.0,0.00025205,3]
[367157897,1750677070741,-1127.76,0.00025205,3]
[367157898,1750677070750,-1061.66,0.00025205,3]
[367157899,1750677070760,-1443.33,0.00025205,3]
[367157900,1750677070770,-725.11,0.00025205,3]
[367157901,1750677070779,-2244.9,0.00025205,3]
[367157902,1750677070789,-490.0,0.00025205,3]
[367157903,1750677070799,-490.0,0.00025205,3]
[367157904,1750677070809,-490.0,0.00025205,3]
[367157905,1750677070820,-490.0,0.00025205,3]
[367157906,1750677070829,-1507.62,0.00025205,3]
[367157907,1750677070839,-490.0,0.00025205,3]
[367157908,1750677070848,-490.0,0.00025205,3]
[367157909,1750677070857,-1470.81,0.00025205,3]
[367157910,1750677070867,-516.66,0.00025205,3]
[367157911,1750677070878,-490.0,0.00025205,3]
[367157912,1750677070887,-490.0,0.00025205,3]
[367157913,1750677070897,-2192.5,0.00025205,3]
[367157914,1750677070907,-611.61,0.00025205,3]
[367157915,1750677070917,-490.0,0.00025205,3]
[367157916,1750677070927,-490.0,0.00025205,3]
[367157917,1750677070937,-314.73,0.00025205,3]
[367157918,1750677070946,-490.0,0.00025205,3]
[367157919,1750677070957,-1253.17,0.00025205,3]
[367157920,1750677070966,-839.41,0.00025205,3]
[367157921,1750677070976,-1054.53,0.00025205,3]
[367157922,1750677070986,-1206.47,0.00025205,3]
[367157923,1750677070995,-1425.65,0.00025205,3]
[367157924,1750677071005,-2415.2,0.00025205,3]
[367157925,1750677071015,-893.36,0.00025205,3]
[367157926,1750677071024,-621.13,0.00025205,3]
[367157927,1750677071034,-490.0,0.00025205,3]
[367157928,1750677071044,-948.46,0.00025205,3]
[367157929,1750677071054,-1564.45,0.00025205,3]
[367157930,1750677071063,-490.0,0.00025205,3]
[367157931,1750677071072,-490.0,0.00025205,3]
[367157932,1750677071081,-1074.16,0.00025205,3]
[367157933,1750677071090,-490.0,0.00025205,3]
[367157934,1750677071099,-585.33,0.00025205,3]
[367157935,1750677071108,-490.0,0.00025205,3]
[367157936,1750677071118,-490.0,0.00025205,3]
[367157937,1750677071129,-490.0,0.00025205,3]
[367157938,1750677071140,-975.39,0.00025205,3]
[367157939,1750677071150,-2083.42,0.00025205,3]
[367157940,1750677071161,-490.0,0.00025205,3]
[367157941,1750677071171,-490.0,0.00025205,3]
[367157942,1750677071181,-897.14,0.00025205,3]
[367157943,1750677071191,-1029.14,0.00025205,3]
[367157944,1750677071201,-1015.98,0.00025205,3]
[367157945,1750677071211,-1672.35,0.00025205,3]
[367157946,1750677071221,-689.93,0.00025205,3]
[367157947,1750677071231,-490.0,0.00025205,3]
[367157948,1750677071241,-490.0,0.00025205,3]
[367157949,1750677071251,-490.0,0.00025205,3]
[367157950,1750677071260,-1356.52,0.00025205,3]
[367157951,1750677071271,-490.0,0.00025205,3]
[367157952,1750677071280,-918.31,0.00025205,3]
[367157953,1750677071290,-490.0,0.00025205,3]
[367157954,1750677071299,-490.0,0.00025205,3]
[367157955,1750677071309,-607.34,0.00025205,3]
[367157956,1750677071319,-490.0,0.00025205,3]
[367157957,1750677071328,-980.97,0.00025205,3]
[367157958,1750677071337,-490.0,0.00025205,3]
[367157959,1750677071348,-490.0,0.00025205,3]
[367157960,1750677071357,-2024.53,0.00025205,3]
[367157961,1750677071367,-741.94,0.00025205,3]
[367157962,1750677071376,-1000.0,0.00025205,3]
[367157963,1750677071386,-490.0,0.00025205,3]
[367157964,1750677071395,-490.0,0.00025205,3]
[367157965,1750677071404,-549.9,0.00025205,3]
[367157966,1750677071414,-490.0,0.00025205,3]
[367157967,1750677071423,-876.32,0.00025205,3]
[367157968,1750677071433,-1429.05,0.00025205,3]
[367157969,1750677071442,-490.0,0.00025205,3]
[367157970,1750677071452,-490.0,0.00025205,3]
[367157971,1750677071461,-490.0,0.00025205,3]
[367157972,1750677071471,-873.91,0.00025205,3]
[367157973,1750677071480,-490.0,0.00025205,3]
[367157974,1750677071490,-490.0,0.00025205,3]
[367157975,1750677071499,-1529.34,0.00025205,3]
[367157976,1750677071508,-490.0,0.00025205,3]
[367157977,1750677071519,-566.07,0.00025205,3]
[367157978,1750677071528,-490.0,0.00025205,3]
[367157979,1750677071537,-814.62,0.00025205,3]
[367157980,1750677071547,-779.14,0.00025205,3]
[367157981,1750677071557,-490.0,0.00025205,3]
[367157982,1750677071566,-490.0,0.00025205,3]
[367157983,1750677071575,-574.6,0.00025205,3]
[367157984,1750677071585,-2383.16,0.00025205,3]
[367157985,1750677071594,-490.0,0.00025205,3]
[367157986,1750677071603,-808.56,0.00025205,3]
[367157987,1750677071612,-490.0,0.00025205,3]
[367157988,1750677071622,-490.0,0.00025205,3]
[367157989,1750677071632,-490.0,0.00025205,3]
[367157990,1750677071643,-813.78,0.00025205,3]
[367157991,1750677071658,-490.0,0.00025205,3]
[367157992,1750677071668,-323.10186902,0.00025205,3]
[367157993,1750677071678,-1206.7,0.00025205,3]
[367157994,1750677071688,-490.0,0.00025205,3]
[367157995,1750677071698,-490.0,0.00025205,3]
[367157996,1750677071707,-1246.53,0.00025205,3]
[367157997,1750677071717,-627.98,0.00025205,3]
[367157998,1750677071727,-696.03,0.00025205,3]
[367157999,1750677071736,-490.0,0.00025205,3]
[367158000,1750677071746,-453.499335,0.00025205,3]
[367158001,1750677071755,-4144.96,0.00025205,3]
[367158002,1750677071765,-490.0,0.00025205,3]
[367158003,1750677071775,-1782.42,0.00025205,3]
[367158004,1750677071784,-490.0,0.00025205,3]
[367158005,1750677071795,-1038.23,0.00025205,3]
[367158006,1750677071805,-904.57,0.00025205,3]
[367158007,1750677071814,-497.15,0.00025205,3]
[367158008,1750677071823,-521.75,0.00025205,3]
[367158009,1750677071834,-490.0,0.00025205,3]
[367158010,1750677071843,-566.83,0.00025205,3]
[367158011,1750677071853,-490.0,0.00025205,3]
[367158012,1750677071863,-490.0,0.00025205,3]
[367158013,1750677071873,-490.0,0.00025205,3]
[367158014,1750677071883,-878.53,0.00025205,3]
[367158015,1750677071893,-490.0,0.00025205,3]
[367158016,1750677071902,-914.5,0.00025205,3]
[367158017,1750677071913,-520.3,0.00025205,3]
[367158018,1750677071923,-490.0,0.00025205,3]
[367158019,1750677071932,-500.0,0.00025205,3]
[367158020,1750677071943,-490.0,0.00025205,3]
[367158021,1750677071953,-1712.67,0.00025205,3]
[367158022,1750677071963,-1037.51,0.00025205,3]
[367158023,1750677071974,-906.93,0.00025205,3]
[367158024,1750677071984,-490.0,0.00025205,3]
[367158025,1750677071994,-490.0,0.00025205,3]
[367158026,1750677072004,-741.36,0.00025205,3]
[367158027,1750677072014,-808.34,0.00025205,3]
[367158028,1750677072023,-490.0,0.00025205,3]
[367158029,1750677072032,-490.0,0.00025205,3]
[367158030,1750677072041,-490.0,0.00025205,3]
[367158031,1750677072051,-490.0,0.00025205,3]
[367158032,1750677072060,-1110.76,0.00025205,3]
[367158033,1750677072069,-490.0,0.00025205,3]
[367158034,1750677072078,-490.0,0.00025205,3]
[367158035,1750677072087,-490.0,0.00025205,3]
[367158036,1750677072097,-490.0,0.00025205,3]
[367158037,1750677072106,-740.2,0.00025205,3]
[367158038,1750677072116,-524.07454754,0.00025205,3]
[367158039,1750677072125,-490.0,0.00025205,3]
[367158040,1750677072220,-1049.86,0.00025205,3]
[367158041,1750677072230,-490.0,0.00025205,3]
[367158042,1750677072240,-490.0,0.00025205,3]
[367158043,1750677072248,-780.11,0.00025205,3]
[367158044,1750677072257,-685.76,0.00025205,3]
[367158045,1750677072267,-1220.59,0.00025205,3]
[367158046,1750677072276,-1093.55,0.00025205,3]
[367158047,1750677072284,-1038.5,0.00025205,3]
[367158048,1750677072294,-490.0,0.00025205,3]
[367158049,1750677072305,-490.0,0.00025205,3]
[367158050,1750677072314,-517.06,0.00025205,3]
[367158051,1750677072323,-490.0,0.00025205,3]
[367158052,1750677072332,-1320.28,0.00025205,3]
[367158053,1750677072341,-722.76,0.00025205,3]
[367158054,1750677072351,-678.85097709,0.00025205,3]
[367158055,1750677073420,-151.0,0.00020984,2]
[367158056,1750677073430,-151.0,0.00021377,2]
[367158057,1750677073440,-151.0,0.00021884,2]
[367158058,1750677073449,-294.44846,0.000222,7]
[367158059,1750677073458,-150.0,0.00024943,2]
[367158060,1750677073468,-150.0,0.00025049,2]
[367158061,1750677073477,-150.0,0.000251,2]
[367158062,1750677073487,-545.69902291,0.00025205,3]
[367158063,1750677073496,-517.37,0.00025205,3]
[367158064,1750677073506,-490.0,0.00025205,3]
[367158065,1750677073515,-490.0,0.00025205,3]
[367158066,1750677073525,-192.79050635,0.00025205,3]
[367158067,1750677073534,-513.56,0.00025205,3]
[367158068,1750677073545,-490.0,0.00025205,3]
[367158069,1750677073555,-490.0,0.00025205,3]
[367158070,1750677073564,-582.29029539,0.00025205,3]
[367158071,1750677073573,-490.0,0.00025205,3]
[367158072,1750677073582,-490.0,0.00025205,3]
[367158073,1750677073592,-490.0,0.00025205,3]
[367158074,1750677073601,-490.0,0.00025205,3]
[367158075,1750677073610,-490.0,0.00025205,3]
[367158076,1750677073619,-490.0,0.00025205,3]
[367158077,1750677073629,-890.1,0.00025205,3]
[367158078,1750677073638,-543.9,0.00025205,3]
[367158079,1750677073652,-490.0,0.00025205,3]
[367158080,1750677073661,-689.62,0.00025205,3]
[367158081,1750677073671,-1003.37,0.00025205,3]
[367158082,1750677073681,-499.41855965,0.00025205,3]
[367158083,1750677073694,-159.62144035,0.00025205,3]
[367158084,1750677073704,-932.18,0.00025205,3]
[367158085,1750677073713,-490.0,0.00025205,3]
[367158086,1750677073723,-490.0,0.00025205,3]
[367158087,1750677073733,-490.0,0.00025205,3]
[367158088,1750677073742,-490.0,0.00025205,3]
[367158089,1750677073752,-333.12635855,0.00025205,3]
[367158090,1750677073761,-343.55249944,0.00025205,3]
[367158091,1750677073773,-487.20750056,0.00025205,3]
[367158092,1750677073782,-120.15249944,0.00025205,3]
[367158093,1750677073799,-369.84750056,0.00025205,3]
[367158094,1750677073810,-505.97246413,0.00025205,3]
[367158095,1750677073822,-686.1,0.00025205,3]
[367158096,1750677073833,-532.44753587,0.00025205,3]
[367158097,1750677073843,-646.8,0.00025205,3]
[367158098,1750677073852,-23.55246313,0.00025205,3]
[367158099,1750677073864,-466.44753687,0.00025205,3]
[367158100,1750677073873,-91.55246313,0.00025205,3]
[367158101,1750677073892,-581.34790231,0.00025205,3]
[367158102,1750677073903,-204.81963456,0.00025205,3]
[367158103,1750677073913,-627.91,0.00025205,3]
[367158104,1750677073923,-813.69,0.00025205,3]
[367158105,1750677073932,-388.05486556,0.00025205,3]
[367158106,1750677073944,-101.94513444,0.00025205,3]
[367158107,1750677073953,-1392.42,0.00025205,3]
[367158108,1750677073962,-1083.36,0.00025205,3]
[367158109,1750677073972,-490.0,0.00025205,3]
[367158110,1750677073981,-916.36,0.00025205,3]
[367158111,1750677073990,-490.0,0.00025205,3]
[367158112,1750677073999,-490.0,0.00025205,3]
[367158113,1750677074009,-490.0,0.00025205,3]
[367158114,1750677074018,-490.0,0.00025205,3]
[367158115,1750677074028,-734.58,0.00025205,3]
[367158116,1750677074037,-727.65,0.00025205,3]
[367158117,1750677074048,-490.0,0.00025205,3]
[367158118,1750677074057,-329.05918355,0.00025205,3]
[367158119,1750677074066,-933.69924352,0.00025205,3]
[367158120,1750677074083,-1535.79075648,0.00025205,3]
[367158121,1750677074092,-934.65,0.00025205,3]
[367158122,1750677074101,-490.0,0.00025205,3]
[367158123,1750677074110,-490.0,0.00025205,3]
[367158124,1750677074120,-609.51,0.00025205,3]
[367158125,1750677074130,-490.0,0.00025205,3]
[367158126,1750677074139,-388.95787134,0.00025205,3]
[367158127,1750677074149,-1566.81,0.00025205,3]
[367158128,1750677074159,-3067.33,0.00025205,3]
[367158129,1750677074168,-1040.1,0.00025205,3]
[367158130,1750677074177,-490.0,0.00025205,3]
[367158131,1750677074187,-714.68,0.00025205,3]
[367158132,1750677074196,-490.0,0.00025205,3]
[367158133,1750677074205,-353.04812466,0.00025205,3]
[367158134,1750677074217,-259.8878484,0.00025205,3]
[367158135,1750677074240,-341.38402694,0.00025205,3]
[367158136,1750677074249,-1890.59,0.00025205,3]
[367158137,1750677074258,-490.0,0.00025205,3]
[367158138,1750677074267,-2844.16,0.00025205,3]
[367158139,1750677074276,-490.0,0.00025205,3]
[367158140,1750677074286,-490.0,0.00025205,3]
[367158141,1750677074296,-749.42,0.00025205,3]
[367158142,1750677074306,-572.98857198,0.00025205,3]
[367158143,1750677074315,-794.74,0.00025205,3]
[367158144,1750677074324,-748.25,0.00025205,3]
[367158145,1750677074333,-516.2,0.00025205,3]
[367158146,1750677074342,-1160.6,0.00025205,3]
[367158147,1750677074352,-490.0,0.00025205,3]
[367158148,1750677074361,-490.0,0.00025205,3]
[367158149,1750677074370,-5466.67,0.00025205,3]
[367158150,1750677074379,-761.32,0.00025205,3]
[367158151,1750677074389,-490.0,0.00025205,3]
[367158152,1750677074398,-688.21,0.00025205,3]
[367158153,1750677074407,-1507.34,0.00025205,3]
[367158154,1750677074416,-998.88,0.00025205,3]
[367158155,1750677074426,-490.0,0.00025205,3]
[367158156,1750677074435,-617.43,0.00025205,3]
[367158157,1750677074445,-497.36,0.00025205,3]
[367158158,1750677074455,-490.0,0.00025205,3]
[367158159,1750677074464,-3570.92154601,0.00025205,3]
[367158160,1750677074971,-201.0,0.00020221,2]
[367158161,1750677074981,-253.77641125,0.00021946,2]
[367158162,1750677074992,-490.0,0.00024657,2]
[367158163,1750677075003,-1960.66,0.00024657,2]
[367158164,1750677075013,-490.0,0.00024657,2]
[367158165,1750677075024,-490.0,0.00024657,2]
[367158166,1750677075035,-490.0,0.00024657,2]
[367158167,1750677075046,-490.0,0.00024931,3]
[367158168,1750677075056,-1960.66,0.00024931,3]
[367158169,1750677075066,-490.0,0.00024931,3]
[367158170,1750677075076,-77.06845399,0.00025205,3]
[367158171,1750677075086,-490.0,0.00025205,3]
[367158172,1750677075095,-1207.93,0.00025205,3]
[367158173,1750677075105,-490.0,0.00025205,3]
[367158174,1750677075115,-490.0,0.00025205,3]
[367158175,1750677075125,-938.37,0.00025205,3]
[367158176,1750677075134,-542.0121783,0.00025205,3]
[367158177,1750677075275,-834.59255148,0.00023563,2]
[367158178,1750677075284,-50.40744852,0.00024931,3]
[367158179,1750677075812,-165.00684534,0.00022055,2]
[367158180,1750677075822,-490.0,0.00024657,2]
[367158181,1750677075832,-490.0,0.00024657,2]
[367158182,1750677075843,-490.0,0.00024657,2]
[367158183,1750677075853,-439.59255148,0.00024931,3]
[367158184,1750677075862,-490.0,0.00024931,3]
[367158185,1750677075872,-490.0,0.00024931,3]
[367158186,1750677075882,-994.0678217,0.00025205,3]
[367158187,1750677075892,-3679.45,0.00025205,3]
[367158188,1750677075902,-490.0,0.00025205,3]
[367158189,1750677075911,-490.0,0.00025205,3]
[367158190,1750677075921,-1155.17,0.00025205,3]
[367158191,1750677075931,-490.0,0.00025205,3]
[367158192,1750677075941,-1104.97,0.00025205,3]
[367158193,1750677075951,-865.36,0.00025205,3]
[367158194,1750677075960,-490.0,0.00025205,3]
[367158195,1750677075970,-559.0,0.00025205,3]
[367158196,1750677075979,-490.0,0.00025205,3]
[367158197,1750677075989,-675.45,0.00025205,3]